[Event "*** Titled Tuesday Blitz"]
[Site "Chess.com"]
[Date "2020.05.19"]
[Round "4"]
[White "cukus"]
[Black "bascheyaro"]
[Result "1-0"]
[WhiteElo "2499"]
[BlackElo "2691"]
[TimeControl "180+1"]
[EndTime "12:41:56 PDT"]
[Termination "cukus won by checkmate"]

1. e4 {[%clk 0:03:00.9]} 1... e6 {[%clk 0:02:59.8]} 2. d4 {[%clk 0:03:00.1]}
2... d5 {[%clk 0:03:00.1]} 3. Nc3 {[%clk 0:03:00.4]} 3... Bb4 {[%clk 0:03:00.3]}
4. e5 {[%clk 0:02:57.6]} 4... Ne7 {[%clk 0:03:00.4]} 5. a3 {[%clk 0:02:56.1]}
5... Bxc3+ {[%clk 0:03:00.8]} 6. bxc3 {[%clk 0:02:57]} 6... b6 {[%clk
0:03:01.7]} 7. Qg4 {[%clk 0:02:56]} 7... Kf8 {[%clk 0:03:02.1]} 8. h4 {[%clk
0:02:52.2]} 8... Ba6 {[%clk 0:03:01.6]} 9. Bxa6 {[%clk 0:02:50.6]} 9... Nxa6
{[%clk 0:03:02.5]} 10. h5 {[%clk 0:02:51.4]} 10... h6 {[%clk 0:03:02.8]} 11. Rh3
{[%clk 0:02:43.9]} 11... c5 {[%clk 0:03:03]} 12. Rf3 {[%clk 0:02:42.1]} 12...
Qc8 {[%clk 0:03:02]} 13. Ne2 {[%clk 0:02:40]} 13... Nb8 {[%clk 0:02:56]} 14. Qf4
{[%clk 0:02:32.3]} 14... Qe8 {[%clk 0:02:54.5]} 15. a4 {[%clk 0:02:32.8]} 15...
Kg8 {[%clk 0:02:49.8]} 16. a5 {[%clk 0:02:30.3]} 16... bxa5 {[%clk 0:02:45.7]}
17. Ba3 {[%clk 0:02:26]} 17... cxd4 {[%clk 0:02:45.4]} 18. cxd4 {[%clk
0:02:21.3]} 18... Nbc6 {[%clk 0:02:45.7]} 19. Rb1 {[%clk 0:02:11.9]} 19... Nb4
{[%clk 0:02:43.4]} 20. Kd2 {[%clk 0:01:20.1]} 20... g5 {[%clk 0:01:43.3]} 21.
hxg6 {[%clk 0:01:11.1]} 21... Nxg6 {[%clk 0:01:43.4]} 22. Qf6 {[%clk 0:01:10.6]}
22... Rh7 {[%clk 0:01:43.9]} 23. c3 {[%clk 0:01:09]} 23... Nc6 {[%clk
0:01:43.7]} 24. Bd6 {[%clk 0:01:08.9]} 24... Qd8 {[%clk 0:01:39.3]} 25. Rb7
{[%clk 0:01:03]} 25... Qxf6 {[%clk 0:01:36.3]} 26. Rxf6 {[%clk 0:01:03.2]} 26...
a4 {[%clk 0:01:35.5]} 27. Kc2 {[%clk 0:01:02.9]} 27... Na5 {[%clk 0:01:35.3]}
28. Rb4 {[%clk 0:00:51.8]} 28... a3 {[%clk 0:01:34.1]} 29. Ra4 {[%clk
0:00:50.5]} 29... Nc4 {[%clk 0:01:34.4]} 30. Bxa3 {[%clk 0:00:50.3]} 30... Nxa3+
{[%clk 0:01:29]} 31. Rxa3 {[%clk 0:00:50.1]} 31... Kg7 {[%clk 0:01:29.4]} 32.
Ra6 {[%clk 0:00:46.9]} 32... Rhh8 {[%clk 0:01:26.8]} 33. f4 {[%clk 0:00:40.6]}
33... Ne7 {[%clk 0:01:11.4]} 34. Ng3 {[%clk 0:00:38.2]} 34... h5 {[%clk
0:01:10.6]} 35. f5 {[%clk 0:00:37.9]} 35... Ng8 {[%clk 0:01:08.9]} 36. fxe6
{[%clk 0:00:31]} 36... Nxf6 {[%clk 0:01:08.7]} 37. Nf5+ {[%clk 0:00:29.3]} 37...
Kg6 {[%clk 0:01:06.4]} 38. Ne7+ {[%clk 0:00:29.4]} 38... Kg5 {[%clk 0:01:06.6]}
39. exf6 {[%clk 0:00:29]} 39... Kxf6 {[%clk 0:01:06.5]} 40. Nxd5+ {[%clk
0:00:28.8]} 40... Kg7 {[%clk 0:01:06.3]} 41. e7 {[%clk 0:00:25.9]} 41... Rae8
{[%clk 0:00:53.7]} 42. Rxa7 {[%clk 0:00:24.7]} 42... h4 {[%clk 0:00:54.1]} 43.
c4 {[%clk 0:00:18.2]} 43... Rh5 {[%clk 0:00:46.5]} 44. Rd7 {[%clk 0:00:17.2]}
44... f6 {[%clk 0:00:28.6]} 45. c5 {[%clk 0:00:13.5]} 45... Rg5 {[%clk
0:00:26.1]} 46. c6 {[%clk 0:00:11.4]} 46... Rxg2+ {[%clk 0:00:26.2]} 47. Kd3
{[%clk 0:00:11.7]} 47... h3 {[%clk 0:00:26.2]} 48. Rd8 {[%clk 0:00:12]} 48...
Rxe7 {[%clk 0:00:14.7]} 49. Nxe7 {[%clk 0:00:09.4]} 49... h2 {[%clk 0:00:15.1]}
50. Rg8+ {[%clk 0:00:08.7]} 50... Kf7 {[%clk 0:00:14.8]} 51. Rh8 {[%clk
0:00:08.7]} 51... Kxe7 {[%clk 0:00:14.9]} 52. c7 {[%clk 0:00:08.6]} 52... h1=Q
{[%clk 0:00:14.8]} 53. Rxh1 {[%clk 0:00:07.6]} 53... Kd7 {[%clk 0:00:15.3]} 54.
Rc1 {[%clk 0:00:07.6]} 54... Kc8 {[%clk 0:00:15.5]} 55. d5 {[%clk 0:00:08.1]}
55... Rg4 {[%clk 0:00:15.1]} 56. d6 {[%clk 0:00:07.5]} 56... Rg8 {[%clk
0:00:14.3]} 57. Kd4 {[%clk 0:00:07.7]} 57... Kd7 {[%clk 0:00:14.8]} 58. Kd5
{[%clk 0:00:07.5]} 58... Rg5+ {[%clk 0:00:15]} 59. Kd4 {[%clk 0:00:07.5]} 59...
Rg8 {[%clk 0:00:15.5]} 60. Kc5 {[%clk 0:00:06.9]} 60... f5 {[%clk 0:00:11.8]}
61. Re1 {[%clk 0:00:07]} 61... f4 {[%clk 0:00:04.7]} 62. Re7+ {[%clk 0:00:06.8]}
62... Kc8 {[%clk 0:00:04.6]} 63. Kc6 {[%clk 0:00:06.8]} 63... f3 {[%clk
0:00:05.1]} 64. d7# {[%clk 0:00:06.8]} 1-0

[Event "*** Titled Tuesday Blitz"]
[Site "Chess.com"]
[Date "2020.05.19"]
[Round "4"]
[White "guillembaches"]
[Black "tan275"]
[Result "1/2-1/2"]
[WhiteElo "2401"]
[BlackElo "2183"]
[TimeControl "180+1"]
[EndTime "12:41:57 PDT"]
[Termination "Game drawn by repetition"]

1. e4 {[%clk 0:02:50.4]} 1... c5 {[%clk 0:02:56.2]} 2. Nf3 {[%clk 0:02:50]} 2...
Nc6 {[%clk 0:02:55.3]} 3. d4 {[%clk 0:02:50.1]} 3... cxd4 {[%clk 0:02:55.4]} 4.
Nxd4 {[%clk 0:02:51]} 4... g6 {[%clk 0:02:55.6]} 5. c4 {[%clk 0:02:50.7]} 5...
Bg7 {[%clk 0:02:55.6]} 6. Nc2 {[%clk 0:02:50.8]} 6... Nf6 {[%clk 0:02:54.5]} 7.
Nc3 {[%clk 0:02:51.2]} 7... d6 {[%clk 0:02:53.6]} 8. Be2 {[%clk 0:02:51.5]} 8...
O-O {[%clk 0:02:54.1]} 9. O-O {[%clk 0:02:51.8]} 9... a6 {[%clk 0:02:54.5]} 10.
Be3 {[%clk 0:02:51.6]} 10... Be6 {[%clk 0:02:52.8]} 11. f3 {[%clk 0:02:51.1]}
11... Rc8 {[%clk 0:02:49.2]} 12. Qd2 {[%clk 0:02:50.8]} 12... Na5 {[%clk
0:02:40.4]} 13. b3 {[%clk 0:02:43.2]} 13... b5 {[%clk 0:02:36.7]} 14. cxb5
{[%clk 0:02:32.8]} 14... Rxc3 {[%clk 0:01:55.1]} 15. Qxc3 {[%clk 0:02:32.7]}
15... Nd5 {[%clk 0:01:43.3]} 16. Qd2 {[%clk 0:02:23.7]} 16... Bc3 {[%clk
0:01:40.3]} 17. Qd3 {[%clk 0:02:17.2]} 17... Nxe3 {[%clk 0:01:35.3]} 18. Nxe3
{[%clk 0:02:01.3]} 18... Bxa1 {[%clk 0:01:31]} 19. Rxa1 {[%clk 0:02:01.1]} 19...
axb5 {[%clk 0:01:24.6]} 20. Qxb5 {[%clk 0:02:00.2]} 20... Qc7 {[%clk 0:01:24.8]}
21. Nd5 {[%clk 0:01:37.3]} 21... Bxd5 {[%clk 0:01:10.8]} 22. Qxd5 {[%clk
0:01:37.3]} 22... Qc3 {[%clk 0:01:08.6]} 23. Rd1 {[%clk 0:01:30]} 23... Rc8
{[%clk 0:01:03.1]} 24. Qd2 {[%clk 0:01:20.2]} 24... Qc5+ {[%clk 0:00:57.6]} 25.
Kh1 {[%clk 0:01:17.4]} 25... Qa3 {[%clk 0:00:54.9]} 26. h3 {[%clk 0:01:10.3]}
26... Nb7 {[%clk 0:00:48.3]} 27. Bc4 {[%clk 0:00:59]} 27... Na5 {[%clk
0:00:41.3]} 28. Be2 {[%clk 0:00:52.5]} 28... Nb7 {[%clk 0:00:41]} 29. Bc4 {[%clk
0:00:52.1]} 29... Na5 {[%clk 0:00:40.9]} 30. Bb5 {[%clk 0:00:51.7]} 30... Rc5
{[%clk 0:00:27.7]} 31. Be2 {[%clk 0:00:43.3]} 31... Nb7 {[%clk 0:00:25.1]} 32.
f4 {[%clk 0:00:43.1]} 32... Ra5 {[%clk 0:00:21.1]} 33. f5 {[%clk 0:00:37.1]}
33... Qxa2 {[%clk 0:00:19.7]} 34. Qe3 {[%clk 0:00:34.6]} 34... Nc5 {[%clk
0:00:18.4]} 35. Bc4 {[%clk 0:00:30.8]} 35... Ra3 {[%clk 0:00:16.8]} 36. Rf1
{[%clk 0:00:29.7]} 36... e6 {[%clk 0:00:09.9]} 37. fxg6 {[%clk 0:00:29.2]} 37...
hxg6 {[%clk 0:00:09.7]} 38. Qf4 {[%clk 0:00:28.7]} 38... Ra7 {[%clk 0:00:09.4]}
39. Qxd6 {[%clk 0:00:25.9]} 39... Nxe4 {[%clk 0:00:09.3]} 40. Qf4 {[%clk
0:00:23.3]} 40... Nd2 {[%clk 0:00:07.5]} 41. Rf2 {[%clk 0:00:19.7]} 41... Qa1+
{[%clk 0:00:06.4]} 42. Kh2 {[%clk 0:00:19.7]} 42... Nxc4 {[%clk 0:00:06.2]} 43.
bxc4 {[%clk 0:00:19.8]} 43... Qc3 {[%clk 0:00:06.2]} 44. Rf3 {[%clk 0:00:15.6]}
44... Qa5 {[%clk 0:00:05.6]} 45. Rd3 {[%clk 0:00:11.4]} 45... Kg7 {[%clk
0:00:06]} 46. Qd4+ {[%clk 0:00:10.8]} 46... e5 {[%clk 0:00:06.1]} 47. Qd6 {[%clk
0:00:10.4]} 47... Rc7 {[%clk 0:00:05.2]} 48. Rf3 {[%clk 0:00:09.5]} 48... Qc5
{[%clk 0:00:05.7]} 49. Qf6+ {[%clk 0:00:09.4]} 49... Kg8 {[%clk 0:00:05.4]} 50.
Rd3 {[%clk 0:00:09.1]} 50... Rc8 {[%clk 0:00:04.9]} 51. Rd5 {[%clk 0:00:09.2]}
51... Qf8 {[%clk 0:00:05.1]} 52. Rxe5 {[%clk 0:00:09]} 52... Rxc4 {[%clk
0:00:05.2]} 53. Re7 {[%clk 0:00:08.8]} 53... Rc8 {[%clk 0:00:06.1]} 54. Re5
{[%clk 0:00:07.6]} 54... Rd8 {[%clk 0:00:07]} 55. Re4 {[%clk 0:00:07.5]} 55...
Re8 {[%clk 0:00:07.3]} 56. Rh4 {[%clk 0:00:07.5]} 56... Qg7 {[%clk 0:00:07.8]}
57. Qxg7+ {[%clk 0:00:07.5]} 57... Kxg7 {[%clk 0:00:08.7]} 58. Rf4 {[%clk
0:00:07.8]} 58... Re6 {[%clk 0:00:09.6]} 59. Rf2 {[%clk 0:00:08.2]} 59... Ra6
{[%clk 0:00:10.2]} 60. Kg3 {[%clk 0:00:08.6]} 60... Rb6 {[%clk 0:00:11.1]} 61.
Rf3 {[%clk 0:00:09]} 61... Rb4 {[%clk 0:00:11.7]} 62. Re3 {[%clk 0:00:09.1]}
62... Rb5 {[%clk 0:00:12.4]} 63. Rf3 {[%clk 0:00:09.5]} 63... Rb4 {[%clk
0:00:13]} 64. Re3 {[%clk 0:00:09.8]} 64... Rb5 {[%clk 0:00:13.5]} 65. Rf3 {[%clk
0:00:10.1]} 65... Rb4 {[%clk 0:00:14.1]} 1/2-1/2

[Event "*** Titled Tuesday Blitz"]
[Site "Chess.com"]
[Date "2020.05.19"]
[Round "4"]
[White "Klavdia_Nik"]
[Black "lelya96"]
[Result "0-1"]
[WhiteElo "2028"]
[BlackElo "2259"]
[TimeControl "180+1"]
[EndTime "12:42:00 PDT"]
[Termination "lelya96 won on time"]

1. Nf3 {[%clk 0:03:00.9]} 1... Nf6 {[%clk 0:02:57.9]} 2. c4 {[%clk 0:03:00.1]}
2... c6 {[%clk 0:02:56.2]} 3. b3 {[%clk 0:02:59.2]} 3... d5 {[%clk 0:02:55.9]}
4. Bb2 {[%clk 0:02:59.6]} 4... e6 {[%clk 0:02:55.9]} 5. g3 {[%clk 0:02:59.8]}
5... Be7 {[%clk 0:02:56.4]} 6. Bg2 {[%clk 0:03:00.3]} 6... O-O {[%clk
0:02:57.1]} 7. O-O {[%clk 0:03:00.8]} 7... b6 {[%clk 0:02:56.3]} 8. d4 {[%clk
0:03:00]} 8... Bb7 {[%clk 0:02:56.7]} 9. Nc3 {[%clk 0:03:00.4]} 9... Nbd7 {[%clk
0:02:54.7]} 10. Qc2 {[%clk 0:03:00.8]} 10... Rc8 {[%clk 0:02:53.6]} 11. Rad1
{[%clk 0:03:01.3]} 11... Qc7 {[%clk 0:02:52.6]} 12. e4 {[%clk 0:02:57]} 12...
dxe4 {[%clk 0:02:49.9]} 13. Nxe4 {[%clk 0:02:57.4]} 13... Nxe4 {[%clk
0:02:50.4]} 14. Qxe4 {[%clk 0:02:57.3]} 14... Nf6 {[%clk 0:02:48.5]} 15. Qe2
{[%clk 0:02:57.6]} 15... Rfd8 {[%clk 0:02:47.7]} 16. Ne5 {[%clk 0:02:56.1]}
16... Bf8 {[%clk 0:02:47.4]} 17. h3 {[%clk 0:02:46.1]} 17... c5 {[%clk
0:02:37.8]} 18. Bxb7 {[%clk 0:02:40.7]} 18... Qxb7 {[%clk 0:02:37.4]} 19. Kh2
{[%clk 0:02:40.6]} 19... Qe4 {[%clk 0:02:28.4]} 20. Qxe4 {[%clk 0:02:30.3]}
20... Nxe4 {[%clk 0:02:28]} 21. f3 {[%clk 0:02:15.8]} 21... Nf6 {[%clk
0:02:24.8]} 22. Kg2 {[%clk 0:02:03.8]} 22... cxd4 {[%clk 0:02:21.9]} 23. Bxd4
{[%clk 0:01:58.5]} 23... h6 {[%clk 0:02:12.4]} 24. Rfe1 {[%clk 0:01:52.2]} 24...
Bb4 {[%clk 0:02:10.3]} 25. Re3 {[%clk 0:01:45.9]} 25... Nd7 {[%clk 0:01:57.7]}
26. f4 {[%clk 0:01:30.3]} 26... Nxe5 {[%clk 0:01:50.8]} 27. fxe5 {[%clk
0:01:28.2]} 27... Bc5 {[%clk 0:01:43.7]} 28. Red3 {[%clk 0:01:26.9]} 28... Rd7
{[%clk 0:00:49.8]} 29. Bxc5 {[%clk 0:01:11.8]} 29... Rxd3 {[%clk 0:00:49.2]} 30.
Rxd3 {[%clk 0:01:12.3]} 30... Rxc5 {[%clk 0:00:49.6]} 31. Rd8+ {[%clk
0:01:12.8]} 31... Kh7 {[%clk 0:00:47.4]} 32. Rd7 {[%clk 0:01:13.2]} 32... a5
{[%clk 0:00:45.7]} 33. Rxf7 {[%clk 0:01:05.4]} 33... Rxe5 {[%clk 0:00:46.1]} 34.
Kf3 {[%clk 0:01:04.8]} 34... b5 {[%clk 0:00:41.3]} 35. cxb5 {[%clk 0:01:01.4]}
35... Rxb5 {[%clk 0:00:40.9]} 36. Ra7 {[%clk 0:00:55]} 36... Kg6 {[%clk
0:00:36.8]} 37. g4 {[%clk 0:00:52.9]} 37... Rc5 {[%clk 0:00:32.1]} 38. h4 {[%clk
0:00:48.9]} 38... h5 {[%clk 0:00:25.6]} 39. g5 {[%clk 0:00:44.1]} 39... Rd5
{[%clk 0:00:19.9]} 40. Re7 {[%clk 0:00:32]} 40... Kf5 {[%clk 0:00:11.4]} 41.
Rxg7 {[%clk 0:00:27.4]} 41... Rd3+ {[%clk 0:00:11.6]} 42. Kg2 {[%clk 0:00:22]}
42... Rd2+ {[%clk 0:00:11.4]} 43. Kf3 {[%clk 0:00:20.1]} 43... Rxa2 {[%clk
0:00:10.9]} 44. Rb7 {[%clk 0:00:18.6]} 44... Rh2 {[%clk 0:00:09.3]} 45. Rb5+
{[%clk 0:00:17.7]} 45... Kg6 {[%clk 0:00:08.7]} 46. Rxa5 {[%clk 0:00:16.8]}
46... Rxh4 {[%clk 0:00:08.7]} 47. Re5 {[%clk 0:00:10.2]} 47... Rh3+ {[%clk
0:00:07.7]} 48. Kg2 {[%clk 0:00:10.6]} 48... Rxb3 {[%clk 0:00:07.4]} 49. Rxe6+
{[%clk 0:00:09.9]} 49... Kxg5 {[%clk 0:00:07.6]} 50. Re5+ {[%clk 0:00:10.3]}
50... Kg4 {[%clk 0:00:07.6]} 51. Re4+ {[%clk 0:00:10.7]} 51... Kf5 {[%clk
0:00:07.8]} 52. Re8 {[%clk 0:00:08.3]} 52... Rb2+ {[%clk 0:00:04.8]} 53. Kh3
{[%clk 0:00:08]} 53... Rb3+ {[%clk 0:00:05.1]} 54. Kh4 {[%clk 0:00:07.7]} 54...
Rb1 {[%clk 0:00:03.9]} 55. Rf8+ {[%clk 0:00:05.9]} 55... Kg6 {[%clk 0:00:03.8]}
56. Rg8+ {[%clk 0:00:05.5]} 56... Kh6 {[%clk 0:00:04.3]} 57. Rg2 {[%clk
0:00:02.3]} 57... Rb4+ {[%clk 0:00:03.5]} 58. Kh3 {[%clk 0:00:01.8]} 58... Rc4
{[%clk 0:00:03.9]} 59. Rg3 {[%clk 0:00:01.4]} 59... Rd4 {[%clk 0:00:04.2]} 60.
Rf3 {[%clk 0:00:01.3]} 60... h4 {[%clk 0:00:04.6]} 0-1

[Event "*** Titled Tuesday Blitz"]
[Site "Chess.com"]
[Date "2020.05.19"]
[Round "4"]
[White "H3nriqueTV"]
[Black "ErikRonka"]
[Result "0-1"]
[WhiteElo "2110"]
[BlackElo "2380"]
[TimeControl "180+1"]
[EndTime "12:42:05 PDT"]
[Termination "ErikRonka won by resignation"]

1. e4 {[%clk 0:02:48.8]} 1... c6 {[%clk 0:02:59.3]} 2. Nc3 {[%clk 0:02:33]} 2...
d5 {[%clk 0:03:00.2]} 3. Qf3 {[%clk 0:02:30.1]} 3... e6 {[%clk 0:02:59.5]} 4. d4
{[%clk 0:02:19.4]} 4... dxe4 {[%clk 0:02:48.8]} 5. Qxe4 {[%clk 0:02:18.7]} 5...
Nf6 {[%clk 0:02:46.4]} 6. Qd3 {[%clk 0:02:19]} 6... c5 {[%clk 0:02:42.1]} 7.
dxc5 {[%clk 0:02:17.8]} 7... Qxd3 {[%clk 0:02:41.3]} 8. Bxd3 {[%clk 0:02:18.7]}
8... Bxc5 {[%clk 0:02:41.5]} 9. Nf3 {[%clk 0:02:18.5]} 9... Nc6 {[%clk
0:02:36.6]} 10. a3 {[%clk 0:02:16.1]} 10... O-O {[%clk 0:02:34.1]} 11. O-O
{[%clk 0:02:15.4]} 11... b6 {[%clk 0:02:31.6]} 12. Bg5 {[%clk 0:02:05.3]} 12...
Bb7 {[%clk 0:02:30.5]} 13. Rad1 {[%clk 0:01:59.2]} 13... Rac8 {[%clk 0:02:12.3]}
14. Ne4 {[%clk 0:01:47.4]} 14... Nxe4 {[%clk 0:02:08.3]} 15. Bxe4 {[%clk
0:01:47.4]} 15... h6 {[%clk 0:02:06.3]} 16. Bf4 {[%clk 0:01:40.1]} 16... Rfd8
{[%clk 0:02:01.4]} 17. Ne5 {[%clk 0:01:32.2]} 17... Na5 {[%clk 0:01:29.1]} 18.
Bd3 {[%clk 0:00:59.4]} 18... Bd6 {[%clk 0:00:51.9]} 19. b4 {[%clk 0:00:51.3]}
19... Nc6 {[%clk 0:00:45.7]} 20. Nxc6 {[%clk 0:00:50.5]} 20... Rxc6 {[%clk
0:00:36]} 21. Be4 {[%clk 0:00:48.8]} 21... Rc4 {[%clk 0:00:28.1]} 22. Bxb7
{[%clk 0:00:18.7]} 22... Rxf4 {[%clk 0:00:26.9]} 23. f3 {[%clk 0:00:19.2]} 23...
Rc4 {[%clk 0:00:21.8]} 24. Rd2 {[%clk 0:00:18.5]} 24... Bc5+ {[%clk 0:00:20.1]}
25. bxc5 {[%clk 0:00:18.2]} 25... Rxd2 {[%clk 0:00:20]} 26. c6 {[%clk
0:00:18.9]} 26... Rdxc2 {[%clk 0:00:16.2]} 27. Rd1 {[%clk 0:00:18.6]} 27... Rxc6
{[%clk 0:00:16.2]} 28. Bxc6 {[%clk 0:00:18.5]} 28... Rxc6 {[%clk 0:00:17.1]} 29.
Rd8+ {[%clk 0:00:18.9]} 29... Kh7 {[%clk 0:00:17.1]} 30. Rd7 {[%clk 0:00:19.8]}
30... a6 {[%clk 0:00:17.7]} 31. Rxf7 {[%clk 0:00:19.4]} 31... Rc3 {[%clk
0:00:18]} 32. a4 {[%clk 0:00:18.7]} 32... Rc4 {[%clk 0:00:14.1]} 33. a5 {[%clk
0:00:18.5]} 33... bxa5 {[%clk 0:00:11.3]} 34. Ra7 {[%clk 0:00:18.7]} 34... Rc6
{[%clk 0:00:11.3]} 35. Kf2 {[%clk 0:00:19.1]} 35... a4 {[%clk 0:00:08.4]} 36.
Rb7 {[%clk 0:00:19.4]} 36... Rc5 {[%clk 0:00:07.6]} 37. Rb4 {[%clk 0:00:17.1]}
37... Ra5 {[%clk 0:00:07.2]} 38. Rb2 {[%clk 0:00:17.7]} 38... a3 {[%clk
0:00:07.3]} 39. Ra2 {[%clk 0:00:18.6]} 39... Kg6 {[%clk 0:00:07]} 40. Ke3 {[%clk
0:00:19.3]} 40... Kf5 {[%clk 0:00:07.4]} 41. h3 {[%clk 0:00:18.4]} 41... Ke5
{[%clk 0:00:07.6]} 42. g3 {[%clk 0:00:16.6]} 42... Kd5 {[%clk 0:00:07.9]} 43.
Kd3 {[%clk 0:00:16.9]} 43... e5 {[%clk 0:00:08.3]} 44. Kc3 {[%clk 0:00:15.9]}
44... g5 {[%clk 0:00:06.8]} 45. Kd3 {[%clk 0:00:15.9]} 45... Ra4 {[%clk
0:00:06.3]} 46. h4 {[%clk 0:00:14.7]} 46... gxh4 {[%clk 0:00:06.2]} 47. gxh4
{[%clk 0:00:15.6]} 47... h5 {[%clk 0:00:06.6]} 48. Kc3 {[%clk 0:00:15.4]} 48...
e4 {[%clk 0:00:06.9]} 49. fxe4+ {[%clk 0:00:15.5]} 49... Kxe4 {[%clk 0:00:07.8]}
50. Kb3 {[%clk 0:00:16.1]} 50... Ra5 {[%clk 0:00:07.7]} 51. Kb4 {[%clk
0:00:15.4]} 51... Rb5+ {[%clk 0:00:06.8]} 52. Ka4 {[%clk 0:00:15.9]} 52... Kf4
{[%clk 0:00:03.8]} 53. Rxa3 {[%clk 0:00:16.3]} 53... Kg4 {[%clk 0:00:04.1]} 54.
Rd3 {[%clk 0:00:14.9]} 54... Kxh4 {[%clk 0:00:03.9]} 55. Rd6 {[%clk 0:00:15.1]}
55... Rg5 {[%clk 0:00:02]} 56. Rxa6 {[%clk 0:00:14.5]} 56... Kh3 {[%clk
0:00:02.9]} 57. Kb4 {[%clk 0:00:13.4]} 57... h4 {[%clk 0:00:03.5]} 58. Ra3+
{[%clk 0:00:14.3]} 58... Rg3 {[%clk 0:00:03.5]} 59. Ra2 {[%clk 0:00:14.9]} 59...
Rd3 {[%clk 0:00:03.7]} 60. Kc4 {[%clk 0:00:14.5]} 60... Rd8 {[%clk 0:00:04.2]}
61. Kc3 {[%clk 0:00:14.3]} 61... Kg3 {[%clk 0:00:04.2]} 62. Kc4 {[%clk
0:00:14.6]} 62... h3 {[%clk 0:00:04.6]} 63. Ra3+ {[%clk 0:00:15.5]} 63... Kh4
{[%clk 0:00:05.1]} 64. Ra7 {[%clk 0:00:16.2]} 64... h2 {[%clk 0:00:05.1]} 65.
Rh7+ {[%clk 0:00:16.9]} 65... Kg3 {[%clk 0:00:05.7]} 66. Rg7+ {[%clk 0:00:17.6]}
66... Kf2 {[%clk 0:00:06]} 67. Rh7 {[%clk 0:00:18.2]} 67... Kg1 {[%clk
0:00:06.4]} 68. Rg7+ {[%clk 0:00:18.4]} 68... Kh1 {[%clk 0:00:06.8]} 69. Rh7
{[%clk 0:00:18.9]} 69... Rd1 {[%clk 0:00:06.8]} 70. Kc3 {[%clk 0:00:19.3]} 70...
Rg1 {[%clk 0:00:07.3]} 71. Kd2 {[%clk 0:00:19.5]} 71... Rg2+ {[%clk 0:00:08.2]}
72. Ke3 {[%clk 0:00:19.5]} 72... Kg1 {[%clk 0:00:08.5]} 73. Rb7 {[%clk
0:00:17.4]} 73... h1=Q {[%clk 0:00:08.2]} 74. Rb1+ {[%clk 0:00:17.8]} 74... Kh2
{[%clk 0:00:08.5]} 75. Rxh1+ {[%clk 0:00:18.7]} 75... Kxh1 {[%clk 0:00:08.7]}
76. Kf3 {[%clk 0:00:19.6]} 0-1

[Event "*** Titled Tuesday Blitz"]
[Site "Chess.com"]
[Date "2020.05.19"]
[Round "4"]
[White "JoakimVonAnd"]
[Black "GMartin_Petrov"]
[Result "0-1"]
[WhiteElo "2448"]
[BlackElo "2615"]
[TimeControl "180+1"]
[EndTime "12:42:06 PDT"]
[Termination "GMartin_Petrov won by resignation"]

1. d4 {[%clk 0:03:00.9]} 1... Nf6 {[%clk 0:02:59.2]} 2. c4 {[%clk 0:02:59.9]}
2... e6 {[%clk 0:02:59.5]} 3. Nc3 {[%clk 0:02:59.6]} 3... Bb4 {[%clk 0:02:58.4]}
4. e3 {[%clk 0:02:57.4]} 4... O-O {[%clk 0:02:57.1]} 5. Bd3 {[%clk 0:02:54.5]}
5... d5 {[%clk 0:02:57.7]} 6. Nf3 {[%clk 0:02:52.8]} 6... c5 {[%clk 0:02:58.3]}
7. cxd5 {[%clk 0:02:53]} 7... exd5 {[%clk 0:02:51.6]} 8. dxc5 {[%clk 0:02:50.4]}
8... Nbd7 {[%clk 0:02:44.3]} 9. O-O {[%clk 0:02:43]} 9... Nxc5 {[%clk
0:02:43.8]} 10. Be2 {[%clk 0:02:36.2]} 10... Bf5 {[%clk 0:02:23.5]} 11. Bd2
{[%clk 0:02:29.1]} 11... Nd3 {[%clk 0:01:56]} 12. Qb3 {[%clk 0:02:15.2]} 12...
Be7 {[%clk 0:01:55.4]} 13. Nd4 {[%clk 0:01:57.4]} 13... Nc5 {[%clk 0:01:52.1]}
14. Qd1 {[%clk 0:01:52.5]} 14... Bg6 {[%clk 0:01:50.8]} 15. Bf3 {[%clk 0:01:28]}
15... Rc8 {[%clk 0:01:49.7]} 16. Nce2 {[%clk 0:01:14.9]} 16... Nfe4 {[%clk
0:01:44.8]} 17. Bb4 {[%clk 0:01:13]} 17... b6 {[%clk 0:01:33.5]} 18. Nf4 {[%clk
0:01:08.1]} 18... Qd7 {[%clk 0:01:24.2]} 19. Nb3 {[%clk 0:00:56]} 19... Rfd8
{[%clk 0:01:02.4]} 20. Rc1 {[%clk 0:00:44.5]} 20... Bf6 {[%clk 0:00:49.3]} 21.
Ba3 {[%clk 0:00:40.4]} 21... Bf5 {[%clk 0:00:46.2]} 22. Nd4 {[%clk 0:00:37.2]}
22... Be6 {[%clk 0:00:36.9]} 23. b4 {[%clk 0:00:25.4]} 23... Nb7 {[%clk
0:00:32.9]} 24. Bxe4 {[%clk 0:00:25.3]} 24... dxe4 {[%clk 0:00:30.8]} 25. Ndxe6
{[%clk 0:00:25.4]} 25... Rxc1 {[%clk 0:00:25.7]} 26. Qxc1 {[%clk 0:00:20.3]}
26... fxe6 {[%clk 0:00:24.1]} 27. Qc4 {[%clk 0:00:20.9]} 27... Nd6 {[%clk
0:00:20.5]} 28. Qxe6+ {[%clk 0:00:20.2]} 28... Qxe6 {[%clk 0:00:20.8]} 29. Nxe6
{[%clk 0:00:21.1]} 29... Rc8 {[%clk 0:00:21.5]} 30. Nd4 {[%clk 0:00:19]} 30...
Bxd4 {[%clk 0:00:14]} 31. exd4 {[%clk 0:00:19.9]} 31... Rc2 {[%clk 0:00:14.5]}
32. d5 {[%clk 0:00:17.6]} 32... Rxa2 {[%clk 0:00:13.9]} 33. Bc1 {[%clk
0:00:18.3]} 33... Ra1 {[%clk 0:00:13.7]} 34. Bf4 {[%clk 0:00:17.5]} 34... Rxf1+
{[%clk 0:00:13.8]} 35. Kxf1 {[%clk 0:00:18.4]} 35... Nb5 {[%clk 0:00:13.8]} 36.
Ke2 {[%clk 0:00:18.1]} 36... Nc3+ {[%clk 0:00:13.8]} 37. Kd2 {[%clk 0:00:16.3]}
37... Nxd5 {[%clk 0:00:14.7]} 38. Bb8 {[%clk 0:00:16.1]} 38... Nxb4 {[%clk
0:00:14]} 39. Bxa7 {[%clk 0:00:15.4]} 39... Nd5 {[%clk 0:00:14.5]} 40. Bb8
{[%clk 0:00:15.1]} 40... Kf7 {[%clk 0:00:14.3]} 41. Be5 {[%clk 0:00:14.4]} 41...
g6 {[%clk 0:00:13.7]} 42. Bd4 {[%clk 0:00:14.9]} 42... Ke6 {[%clk 0:00:14.2]}
43. f3 {[%clk 0:00:11.2]} 43... exf3 {[%clk 0:00:13.6]} 44. gxf3 {[%clk
0:00:12.1]} 44... Kf5 {[%clk 0:00:13.9]} 45. Ke2 {[%clk 0:00:12.3]} 45... b5
{[%clk 0:00:13.8]} 46. h4 {[%clk 0:00:10]} 46... Nf4+ {[%clk 0:00:13.4]} 47. Kf2
{[%clk 0:00:09.4]} 47... b4 {[%clk 0:00:13.1]} 48. Bh8 {[%clk 0:00:07.8]} 48...
b3 {[%clk 0:00:13.1]} 49. Kg3 {[%clk 0:00:07.8]} 49... Nd3 {[%clk 0:00:12.6]}
50. h5 {[%clk 0:00:07.5]} 50... gxh5 {[%clk 0:00:11.6]} 51. Kh4 {[%clk
0:00:05.8]} 51... Kg6 {[%clk 0:00:11.5]} 52. Bd4 {[%clk 0:00:05.6]} 52... b2
{[%clk 0:00:10.7]} 53. Bxb2 {[%clk 0:00:05]} 53... Nxb2 {[%clk 0:00:11.6]} 54.
f4 {[%clk 0:00:05.6]} 54... Nd3 {[%clk 0:00:07.6]} 55. f5+ {[%clk 0:00:06.5]}
55... Kh6 {[%clk 0:00:07.7]} 56. f6 {[%clk 0:00:06.5]} 56... Ne5 {[%clk
0:00:07.8]} 57. Kh3 {[%clk 0:00:06.9]} 57... Kg5 {[%clk 0:00:07.1]} 58. Kg3
{[%clk 0:00:05.1]} 58... Kxf6 {[%clk 0:00:06.4]} 59. Kh4 {[%clk 0:00:06]} 59...
Kg6 {[%clk 0:00:06.8]} 60. Kh3 {[%clk 0:00:06.9]} 60... Kg5 {[%clk 0:00:07.6]}
61. Kg3 {[%clk 0:00:06.9]} 61... Ng6 {[%clk 0:00:08.5]} 62. Kh3 {[%clk
0:00:07.7]} 62... h4 {[%clk 0:00:09.2]} 63. Kh2 {[%clk 0:00:08.6]} 63... Nf4
{[%clk 0:00:09.3]} 64. Kg1 {[%clk 0:00:08.6]} 64... Kg4 {[%clk 0:00:10.2]} 65.
Kh2 {[%clk 0:00:09.5]} 65... h3 {[%clk 0:00:09.1]} 66. Kh1 {[%clk 0:00:10.4]}
66... Kg3 {[%clk 0:00:09.6]} 67. Kg1 {[%clk 0:00:11.3]} 67... Nd3 {[%clk
0:00:09.8]} 68. Kh1 {[%clk 0:00:12.2]} 68... Nf2+ {[%clk 0:00:10.1]} 69. Kg1
{[%clk 0:00:12.1]} 69... h2+ {[%clk 0:00:11]} 70. Kf1 {[%clk 0:00:13]} 70...
h1=Q+ {[%clk 0:00:10.9]} 71. Ke2 {[%clk 0:00:13.9]} 0-1